fUST/lending_fUST_20250604
["ID","MTS","AMOUNT","RATE_DAILY","PERIOD"]
[364242027,1749047448188,-400.0,0.0001726,2]
[364242029,1749047448198,-400.0,0.0001726,2]
[364242031,1749047448208,-440.0,0.0001726,2]
[364242032,1749047448218,-440.0,0.0001726,2]
[364242035,1749047448228,-400.0,0.0001726,2]
[364242037,1749047448238,-236.95288892,0.0001726,2]
[364242038,1749047448247,-400.0,0.0001726,2]
[364242040,1749047448257,-430.0,0.0001726,2]
[364242043,1749047448269,-440.0,0.0001726,2]
[364242045,1749047448278,-400.0,0.0001726,2]
[364242047,1749047448288,-440.0,0.0001726,2]
[364242049,1749047448298,-440.0,0.0001726,2]
[364242051,1749047448308,-1122.68,0.0001726,2]
[364242052,1749047448317,-440.0,0.0001726,2]
[364242054,1749047448327,-440.0,0.0001726,2]
[364242056,1749047448337,-440.0,0.0001726,2]
[364242058,1749047448347,-440.0,0.0001726,2]
[364242060,1749047448356,-440.0,0.0001726,2]
[364242062,1749047448366,-165.65512492,0.0001726,2]
[364242064,1749047448375,-440.0,0.0001726,2]
[364242066,1749047448385,-440.0,0.0001726,2]
[364242068,1749047448395,-440.0,0.0001726,2]
[364242070,1749047448404,-440.0,0.0001726,2]
[364242072,1749047448414,-440.0,0.0001726,2]
[364242074,1749047448423,-440.0,0.0001726,2]
[364242076,1749047448432,-440.0,0.0001726,2]
[364242078,1749047448442,-440.0,0.0001726,2]
[364242080,1749047448452,-685.07,0.0001726,2]
[364242083,1749047448463,-1430.6,0.0001726,2]
[364242084,1749047448473,-440.0,0.0001726,2]
[364242086,1749047448483,-440.0,0.0001726,2]
[364242088,1749047448493,-440.0,0.0001726,2]
[364242091,1749047448502,-440.0,0.0001726,2]
[364242092,1749047448512,-440.0,0.0001726,2]
[364242095,1749047448522,-466.45,0.0001726,2]
[364242096,1749047448531,-440.0,0.0001726,2]
[364242099,1749047448540,-440.0,0.0001726,2]
[364242100,1749047448550,-865.22,0.0001726,2]
[364242102,1749047448559,-410.0,0.0001726,2]
[364242104,1749047448569,-440.0,0.0001726,2]
[364242106,1749047448579,-440.0,0.0001726,2]
[364242108,1749047448591,-440.0,0.0001726,2]
[364242110,1749047448600,-440.0,0.0001726,2]
[364242112,1749047448610,-440.0,0.0001726,2]
[364242114,1749047448620,-163.086631,0.0001726,2]
[364242116,1749047448630,-400.0,0.0001726,2]
[364242118,1749047448640,-440.0,0.0001726,2]
[364242120,1749047448654,-440.0,0.0001726,2]
[364242122,1749047448664,-2165.97,0.0001726,2]
[364242124,1749047448673,-440.0,0.0001726,2]
[364242126,1749047448683,-2366.92,0.0001726,2]
[364242128,1749047448693,-440.0,0.0001726,2]
[364242130,1749047448702,-440.0,0.0001726,2]
[364242132,1749047448712,-500.0,0.0001726,2]
[364242134,1749047448720,-556.74,0.0001726,2]
[364242136,1749047448730,-480.69,0.0001726,2]
[364242137,1749047448739,-440.0,0.0001726,2]
[364242139,1749047448748,-440.0,0.0001726,2]
[364242141,1749047448758,-400.0,0.0001726,2]
[364242143,1749047448767,-440.0,0.0001726,2]
[364242145,1749047448776,-400.0,0.0001726,2]
[364242147,1749047448785,-440.0,0.0001726,2]
[364242149,1749047448796,-808.96,0.0001726,2]
[364242151,1749047448806,-440.0,0.0001726,2]
[364242153,1749047448816,-440.0,0.0001726,2]
[364242155,1749047448826,-440.0,0.0001726,2]
[364242157,1749047448835,-440.0,0.0001726,2]
[364242159,1749047448845,-440.0,0.0001726,2]
[364242161,1749047448855,-605.75,0.0001726,2]
[364242163,1749047448864,-440.0,0.0001726,2]
[364242165,1749047448873,-440.0,0.0001726,2]
[364242167,1749047448883,-400.0,0.0001726,2]
[364242169,1749047448893,-440.0,0.0001726,2]
[364242171,1749047448905,-440.0,0.0001726,2]
[364242173,1749047448915,-440.0,0.0001726,2]
[364242175,1749047448925,-440.0,0.0001726,2]
[364242177,1749047448935,-440.0,0.0001726,2]
[364242180,1749047448944,-440.0,0.0001726,2]
[364242181,1749047448955,-519.30935665,0.0001726,2]
[364242183,1749047448965,-401.22536101,0.0001726,2]
[364242185,1749047448974,-400.0,0.0001726,2]
[364242187,1749047448984,-440.0,0.0001726,2]
[364242189,1749047448994,-440.0,0.0001726,2]
[364242192,1749047449004,-440.0,0.0001726,2]
[364242194,1749047449014,-440.0,0.0001726,2]
[364242196,1749047449025,-440.0,0.0001726,2]
[364242198,1749047449037,-440.0,0.0001726,2]
[364242200,1749047449047,-440.0,0.0001726,2]
[364242202,1749047449057,-440.0,0.0001726,2]
[364242204,1749047449068,-440.0,0.0001726,2]
[364242206,1749047449079,-410.0,0.0001726,2]
[364242208,1749047449088,-328.58855894,0.0001726,2]
[364242210,1749047449101,-400.0,0.0001726,2]
[364242212,1749047449111,-440.0,0.0001726,2]
[364242214,1749047449121,-440.0,0.0001726,2]
[364242216,1749047449131,-440.0,0.0001726,2]
[364242218,1749047449141,-440.0,0.0001726,2]
[364242220,1749047449153,-440.0,0.0001726,2]
[364242222,1749047449163,-440.0,0.0001726,2]
[364242224,1749047449173,-440.0,0.0001726,2]
[364242226,1749047449183,-503.78,0.0001726,2]
[364242228,1749047449193,-520.24,0.0001726,2]
[364242230,1749047449204,-400.0,0.0001726,2]
[364242232,1749047449214,-689.93,0.0001726,2]
[364242234,1749047449224,-440.0,0.0001726,2]
[364242236,1749047449234,-400.0,0.0001726,2]
[364242238,1749047449243,-440.0,0.0001726,2]
[364242240,1749047449253,-440.0,0.0001726,2]
[364242242,1749047449263,-440.0,0.0001726,2]
[364242244,1749047449274,-400.0,0.0001726,2]
[364242246,1749047449284,-440.0,0.0001726,2]
[364242248,1749047449295,-440.0,0.0001726,2]
[364242250,1749047449306,-440.0,0.0001726,2]
[364242252,1749047449316,-440.0,0.0001726,2]
[364242254,1749047449327,-342.99725991,0.0001726,2]
[364242256,1749047449337,-440.0,0.0001726,2]
[364242258,1749047449348,-400.0,0.0001726,2]
[364242260,1749047449357,-404.66182497,0.0001726,2]
[364242262,1749047449368,-390.784115,0.0001726,2]
[364242264,1749047449378,-235.81816703,0.0001726,2]
[364242266,1749047449387,-440.0,0.0001726,2]
[364242267,1749047449401,-440.0,0.0001726,2]
[364242268,1749047449411,-964.36,0.0001726,2]
[364242269,1749047449422,-440.0,0.0001726,2]
[364242270,1749047449432,-400.0,0.0001726,2]
[364242271,1749047449443,-440.0,0.0001726,2]
[364242272,1749047449453,-440.0,0.0001726,2]
[364242273,1749047449463,-440.0,0.0001726,2]
[364242274,1749047449473,-440.0,0.0001726,2]
[364242275,1749047449483,-440.0,0.0001726,2]
[364242276,1749047449494,-380.0,0.0001726,2]
[364242278,1749047449504,-440.0,0.0001726,2]
[364242279,1749047449514,-2437.35,0.0001726,2]
[364242280,1749047449524,-440.0,0.0001726,2]
[364242282,1749047449533,-440.0,0.0001726,2]
[364242284,1749047449543,-198.30378963,0.0001726,2]
[364242286,1749047449553,-440.0,0.0001726,2]
[364242288,1749047449563,-825.29,0.0001726,2]
[364242290,1749047449573,-410.0,0.0001726,2]
[364242292,1749047449583,-440.0,0.0001726,2]
[364242294,1749047449593,-370.0,0.0001726,2]
[364242296,1749047449602,-440.0,0.0001726,2]
[364242298,1749047449612,-151.0,0.000175,2]
[364242300,1749047449621,-430.0,0.00017534,2]
[364242302,1749047449631,-2160.74,0.00017534,2]
[364242304,1749047449640,-440.0,0.00017534,2]
[364242306,1749047449652,-440.0,0.00017534,2]
[364242308,1749047449663,-440.0,0.00017534,2]
[364242310,1749047449674,-1722.31,0.00017534,2]
[364242312,1749047449684,-400.0,0.00017534,2]
[364242313,1749047449696,-440.0,0.00017534,2]
[364242315,1749047449707,-390.0,0.00017534,2]
[364242318,1749047449720,-390.0,0.00017534,2]
[364242319,1749047449734,-440.0,0.00017534,2]
[364242331,1749047449745,-1122.68,0.00017534,2]
[364242333,1749047449847,-310.61648874,0.00017534,2]
[364242335,1749047449857,-440.0,0.00017534,2]
[364242337,1749047449866,-390.0,0.00017534,2]
[364242339,1749047449877,-390.0,0.00017534,2]
[364242341,1749047449886,-446.0,0.00017534,2]
[364242343,1749047449897,-300.0,0.00017534,2]
[364242345,1749047449906,-390.0,0.00017534,2]
[364242347,1749047449916,-390.0,0.00017534,2]
[364242349,1749047449925,-440.0,0.00017534,2]
[364242351,1749047449935,-390.0,0.00017534,2]
[364242353,1749047449945,-440.0,0.00017534,2]
[364242355,1749047449954,-440.0,0.00017534,2]
[364242357,1749047449964,-183.35469407,0.00017534,2]
[364242359,1749047449973,-685.07,0.00017534,2]
[364242361,1749047449982,-1430.6,0.00017534,2]
[364242363,1749047449992,-440.0,0.00017534,2]
[364242365,1749047450002,-440.0,0.00017534,2]
[364242367,1749047450012,-390.0,0.00017534,2]
[364242369,1749047450023,-440.0,0.00017534,2]
[364242371,1749047450032,-440.0,0.00017534,2]
[364242373,1749047450042,-466.45,0.00017534,2]
[364242375,1749047450051,-440.0,0.00017534,2]
[364242377,1749047450061,-440.0,0.00017534,2]
[364242379,1749047450071,-865.22,0.00017534,2]
[364242381,1749047450081,-440.0,0.00017534,2]
[364242383,1749047450092,-440.0,0.00017534,2]
[364242385,1749047450102,-440.0,0.00017534,2]
[364242387,1749047450113,-440.0,0.00017534,2]
[364242389,1749047450123,-440.0,0.00017534,2]
[364242391,1749047450132,-440.0,0.00017534,2]
[364242393,1749047450142,-440.0,0.00017534,2]
[364242395,1749047450153,-2165.97,0.00017534,2]
[364242397,1749047450163,-440.0,0.00017534,2]
[364242399,1749047450172,-2366.92,0.00017534,2]
[364242401,1749047450182,-440.0,0.00017534,2]
[364242403,1749047450192,-440.0,0.00017534,2]
[364242405,1749047450201,-500.0,0.00017534,2]
[364242407,1749047450210,-556.74,0.00017534,2]
[364242409,1749047450220,-480.69,0.00017534,2]
[364242411,1749047450230,-390.0,0.00017534,2]
[364242413,1749047450239,-440.0,0.00017534,2]
[364242414,1749047450249,-440.0,0.00017534,2]
[364242416,1749047450259,-440.0,0.00017534,2]
[364242418,1749047450268,-808.96,0.00017534,2]
[364242420,1749047450277,-440.0,0.00017534,2]
[364242422,1749047450287,-440.0,0.00017534,2]
[364242424,1749047450297,-440.0,0.00017534,2]
[364242426,1749047450306,-440.0,0.00017534,2]
[364242428,1749047450316,-440.0,0.00017534,2]
[364242430,1749047450325,-605.75,0.00017534,2]
[364242432,1749047450334,-440.0,0.00017534,2]
[364242434,1749047450344,-440.0,0.00017534,2]
[364242436,1749047450354,-440.0,0.00017534,2]
[364242438,1749047450363,-440.0,0.00017534,2]
[364242440,1749047450373,-440.0,0.00017534,2]
[364242442,1749047450383,-440.0,0.00017534,2]
[364242444,1749047450392,-440.0,0.00017534,2]
[364242446,1749047450403,-440.0,0.00017534,2]
[364242448,1749047450413,-440.0,0.00017534,2]
[364242450,1749047450423,-390.0,0.00017534,2]
[364242452,1749047450433,-440.0,0.00017534,2]
[364242454,1749047450442,-440.0,0.00017534,2]
[364242456,1749047450452,-440.0,0.00017534,2]
[364242458,1749047450461,-320.0,0.00017534,2]
[364242460,1749047450471,-440.0,0.00017534,2]
[364242462,1749047450480,-440.0,0.00017534,2]
[364242464,1749047450489,-440.0,0.00017534,2]
[364242466,1749047450499,-440.0,0.00017534,2]
[364242468,1749047450509,-390.0,0.00017534,2]
[364242470,1749047450518,-440.0,0.00017534,2]
[364242472,1749047450527,-440.0,0.00017534,2]
[364242474,1749047450537,-440.0,0.00017534,2]
[364242476,1749047450547,-390.0,0.00017534,2]
[364242478,1749047450557,-440.0,0.00017534,2]
[364242480,1749047450567,-503.78,0.00017534,2]
[364242482,1749047450576,-520.24,0.00017534,2]
[364242484,1749047450585,-689.93,0.00017534,2]
[364242486,1749047450595,-440.0,0.00017534,2]
[364242488,1749047450605,-440.0,0.00017534,2]
[364242490,1749047450615,-390.0,0.00017534,2]
[364242492,1749047450625,-440.0,0.00017534,2]
[364242494,1749047450636,-440.0,0.00017534,2]
[364242496,1749047450648,-390.0,0.00017534,2]
[364242498,1749047450661,-440.0,0.00017534,2]
[364242500,1749047450670,-440.0,0.00017534,2]
[364242502,1749047450680,-440.0,0.00017534,2]
[364242504,1749047450690,-440.0,0.00017534,2]
[364242506,1749047450701,-440.0,0.00017534,2]
[364242508,1749047450710,-964.36,0.00017534,2]
[364242510,1749047450721,-440.0,0.00017534,2]
[364242512,1749047450732,-440.0,0.00017534,2]
[364242514,1749047450741,-212.33142567,0.00017534,2]
[364242516,1749047450751,-440.0,0.00017534,2]
[364242518,1749047450760,-408.91441803,0.00017534,2]
[364242520,1749047450770,-404.42737698,0.00017534,2]
[364242522,1749047450779,-440.0,0.00017534,2]
[364242524,1749047450791,-2437.35,0.00017534,2]
[364242526,1749047450800,-440.0,0.00017534,2]
[364242528,1749047450810,-244.57051219,0.00017534,2]
[364242530,1749047450820,-440.0,0.00017534,2]
[364242532,1749047450830,-825.29,0.00017534,2]
[364242534,1749047450839,-440.0,0.00017534,2]
[364242536,1749047450848,-411.37203677,0.00017534,2]
[364242538,1749047450858,-151.0,0.000178,2]
[364242540,1749047450868,-683.97,0.00017807,2]
[364242542,1749047450878,-2160.74,0.00017808,2]
[364242544,1749047450887,-511.00950499,0.00017808,2]
[364242546,1749047450897,-440.0,0.00017808,2]
[364242548,1749047450906,-440.0,0.00017808,2]
[364242550,1749047450916,-1722.31,0.00017808,2]
[364242552,1749047450926,-567.46578651,0.00017808,2]
[364242554,1749047450936,-440.0,0.00017808,2]
[364242556,1749047450946,-1122.68,0.00017808,2]
[364242558,1749047450955,-440.0,0.00017808,2]
[364242560,1749047450965,-380.0,0.00017808,2]
[364242562,1749047450975,-440.0,0.00017808,2]
[364242564,1749047450984,-440.0,0.00017808,2]
[364242566,1749047450993,-685.07,0.00017808,2]
[364242568,1749047451002,-1430.6,0.00017808,2]
[364242570,1749047451011,-380.0,0.00017808,2]
[364242572,1749047451021,-440.0,0.00017808,2]
[364242574,1749047451030,-271.61168407,0.00017808,2]
[364242576,1749047451040,-380.0,0.00017808,2]
[364242578,1749047451049,-466.45,0.00017808,2]
[364242580,1749047451058,-380.0,0.00017808,2]
[364242582,1749047451068,-440.0,0.00017808,2]
[364242584,1749047451078,-865.22,0.00017808,2]
[364242586,1749047451087,-440.0,0.00017808,2]
[364242588,1749047451097,-380.0,0.00017808,2]
[364242590,1749047451107,-380.0,0.00017808,2]
[364242592,1749047451116,-380.0,0.00017808,2]
[364242594,1749047451125,-380.0,0.00017808,2]
[364242596,1749047451134,-440.0,0.00017808,2]
[364242598,1749047451143,-2165.97,0.00017808,2]
[364242600,1749047451154,-440.0,0.00017808,2]
[364242602,1749047451164,-380.0,0.00017808,2]
[364242604,1749047451173,-2366.92,0.00017808,2]
[364242606,1749047451183,-440.0,0.00017808,2]
[364242608,1749047451192,-440.0,0.00017808,2]
[364242610,1749047451201,-581.46090903,0.00017808,2]
[364242612,1749047451211,-556.74,0.00017808,2]
[364242614,1749047451221,-480.69,0.00017808,2]
[364242616,1749047451230,-440.0,0.00017808,2]
[364242618,1749047451239,-440.0,0.00017808,2]
[364242620,1749047451249,-440.0,0.00017808,2]
[364242622,1749047451259,-808.96,0.00017808,2]
[364242624,1749047451269,-440.0,0.00017808,2]
[364242626,1749047451278,-440.0,0.00017808,2]
[364242628,1749047451288,-380.0,0.00017808,2]
[364242630,1749047451297,-440.0,0.00017808,2]
[364242632,1749047451306,-380.0,0.00017808,2]
[364242634,1749047451316,-605.75,0.00017808,2]
[364242636,1749047451325,-440.0,0.00017808,2]
[364242638,1749047451335,-397.06801446,0.00017808,2]
[364242640,1749047451344,-380.0,0.00017808,2]
[364242642,1749047451354,-440.0,0.00017808,2]
[364242644,1749047451364,-440.0,0.00017808,2]
[364242646,1749047451373,-440.0,0.00017808,2]
[364242648,1749047451383,-440.0,0.00017808,2]
[364242650,1749047451392,-440.0,0.00017808,2]
[364242652,1749047451404,-440.0,0.00017808,2]
[364242654,1749047451414,-440.0,0.00017808,2]
[364242656,1749047451423,-440.0,0.00017808,2]
[364242658,1749047451433,-440.0,0.00017808,2]
[364242660,1749047451443,-425.20072379,0.00017808,2]
[364242662,1749047451452,-440.0,0.00017808,2]
[364242664,1749047451462,-440.0,0.00017808,2]
[364242666,1749047451471,-440.0,0.00017808,2]
[364242668,1749047451480,-440.0,0.00017808,2]
[364242669,1749047451489,-380.0,0.00017808,2]
[364242671,1749047451499,-440.0,0.00017808,2]
[364242674,1749047451509,-280.59963243,0.00017808,2]
[364242675,1749047451519,-503.78,0.00017808,2]
[364242677,1749047451529,-520.24,0.00017808,2]
[364242679,1749047451538,-689.93,0.00017808,2]
[364242681,1749047451548,-440.0,0.00017808,2]
[364242683,1749047451558,-440.0,0.00017808,2]
[364242685,1749047451567,-318.36172699,0.00017808,2]
[364242687,1749047451577,-440.0,0.00017808,2]
[364242689,1749047451587,-440.0,0.00017808,2]
[364242691,1749047451597,-440.0,0.00017808,2]
[364242698,1749047451686,-440.0,0.00017808,2]
[364242699,1749047451697,-380.0,0.00017808,2]
[364242700,1749047451706,-440.0,0.00017808,2]
[364242701,1749047451715,-964.36,0.00017808,2]
[364242702,1749047451724,-440.0,0.00017808,2]
[364242703,1749047451736,-389.11841768,0.00017808,2]
[364242704,1749047451745,-440.0,0.00017808,2]
[364242705,1749047451755,-380.0,0.00017808,2]
[364242706,1749047451764,-2437.35,0.00017808,2]
[364242707,1749047451773,-440.0,0.00017808,2]
[364242708,1749047451782,-825.29,0.00017808,2]
[364242709,1749047451791,-522.66225048,0.00017808,2]
[364242710,1749047451801,-440.0,0.00017808,2]
[364242711,1749047451811,-157.20561442,0.00017883,2]
[364242712,1749047451819,-4421.23937856,0.000179,2]
[364242713,1749047451828,-3071.5,0.00017963,2]
[364242714,1749047451838,-3071.5,0.00017963,2]
[364242715,1749047451846,-3071.5,0.00017963,2]
[364242716,1749047451855,-420.0,0.00017963,2]
[364242717,1749047451865,-420.0,0.00017963,2]
[364242718,1749047451874,-316.1327471,0.00018,2]
[364242719,1749047451883,-728.47350963,0.00018,2]
[364242720,1749047451892,-1680.0,0.00018053,2]
[364242721,1749047451902,-2160.74,0.00018082,2]
[364242722,1749047451911,-440.0,0.00018082,2]
[364242723,1749047451921,-440.0,0.00018082,2]
[364242724,1749047451930,-1722.31,0.00018082,2]
[364242725,1749047451939,-440.0,0.00018082,2]
[364242726,1749047451948,-1122.68,0.00018082,2]
[364242728,1749047451957,-440.0,0.00018082,2]
[364242729,1749047451967,-360.0,0.00018082,2]
[364242730,1749047451977,-380.0,0.00018082,2]
[364242732,1749047451987,-685.07,0.00018082,2]
[364242734,1749047451996,-1430.6,0.00018082,2]
[364242736,1749047452006,-440.0,0.00018082,2]
[364242738,1749047452015,-466.45,0.00018082,2]
[364242740,1749047452025,-440.0,0.00018082,2]
[364242742,1749047452035,-865.22,0.00018082,2]
[364242744,1749047452045,-440.0,0.00018082,2]
[364242746,1749047452054,-440.0,0.00018082,2]
[364242748,1749047452064,-2165.97,0.00018082,2]
[364242750,1749047452073,-440.0,0.00018082,2]
[364242752,1749047452082,-2366.92,0.00018082,2]
[364242754,1749047452092,-370.0,0.00018082,2]
[364242755,1749047452101,-440.0,0.00018082,2]
[364242758,1749047452111,-556.74,0.00018082,2]
[364242760,1749047452122,-480.69,0.00018082,2]
[364242762,1749047452132,-370.0,0.00018082,2]
[364242764,1749047452142,-440.0,0.00018082,2]
[364242765,1749047452152,-318.85,0.00018082,2]
[364242767,1749047452163,-808.96,0.00018082,2]
[364242770,1749047452173,-398.2654813,0.00018082,2]
[364242771,1749047452183,-440.0,0.00018082,2]
[364242773,1749047452193,-370.0,0.00018082,2]
[364242775,1749047452203,-605.75,0.00018082,2]
[364242778,1749047452213,-440.0,0.00018082,2]
[364242780,1749047452223,-237.87610709,0.00018082,2]
[364242782,1749047452232,-440.0,0.00018082,2]
[364242783,1749047452242,-440.0,0.00018082,2]
[364242785,1749047452252,-440.0,0.00018082,2]
[364242787,1749047452262,-440.0,0.00018082,2]
[364242789,1749047452271,-440.0,0.00018082,2]
[364242791,1749047452281,-440.0,0.00018082,2]
[364242793,1749047452290,-440.0,0.00018082,2]
[364242795,1749047452301,-440.0,0.00018082,2]
[364242797,1749047452310,-440.0,0.00018082,2]
[364242799,1749047452319,-440.0,0.00018082,2]
[364242801,1749047452329,-348.69381437,0.00018082,2]
[364242803,1749047452339,-440.0,0.00018082,2]
[364242805,1749047452349,-440.0,0.00018082,2]
[364242807,1749047452358,-503.78,0.00018082,2]
[364242809,1749047452368,-520.24,0.00018082,2]
[364242811,1749047452378,-689.93,0.00018082,2]
[364242813,1749047452388,-440.0,0.00018082,2]
[364242815,1749047452398,-440.0,0.00018082,2]
[364242817,1749047452409,-440.0,0.00018082,2]
[364242820,1749047452419,-440.0,0.00018082,2]
[364242821,1749047452429,-440.0,0.00018082,2]
[364242823,1749047452439,-440.0,0.00018082,2]
[364242825,1749047452449,-440.0,0.00018082,2]
[364242827,1749047452459,-964.36,0.00018082,2]
[364242829,1749047452469,-440.0,0.00018082,2]
[364242831,1749047452479,-440.0,0.00018082,2]
[364242833,1749047452488,-2437.35,0.00018082,2]
[364242835,1749047452498,-440.0,0.00018082,2]
[364242837,1749047452507,-825.29,0.00018082,2]
[364242839,1749047452518,-440.0,0.00018082,2]
[364242841,1749047452527,-151.0,0.000181,2]
[364242843,1749047452537,-423.74812265,0.00018133,2]
[364242845,1749047452547,-4421.23937849,0.00018141,2]
[364242847,1749047452557,-2160.74,0.00018356,2]
[364242850,1749047452567,-440.0,0.00018356,2]
[364242852,1749047452577,-473.28246514,0.00018356,2]
[364242854,1749047452587,-1722.31,0.00018356,2]
[364242856,1749047452596,-440.0,0.00018356,2]
[364242857,1749047452606,-1122.68,0.00018356,2]
[364242860,1749047452615,-440.0,0.00018356,2]
[364242861,1749047452624,-685.07,0.00018356,2]
[364242863,1749047452634,-1430.6,0.00018356,2]
[364242865,1749047452644,-440.0,0.00018356,2]
[364242867,1749047452655,-466.45,0.00018356,2]
[364242869,1749047452665,-258.77319305,0.00018356,2]
[364242871,1749047452675,-865.22,0.00018356,2]
[364242873,1749047452686,-440.0,0.00018356,2]
[364242875,1749047452696,-320.0,0.00018356,2]
[364242877,1749047452705,-370.0,0.00018356,2]
[364242879,1749047452715,-2165.97,0.00018356,2]
[364242881,1749047452724,-2366.92,0.00018356,2]
[364242883,1749047452734,-380.0,0.00018356,2]
[364242885,1749047452744,-556.74,0.00018356,2]
[364242887,1749047452754,-480.69,0.00018356,2]
[364242889,1749047452763,-376.12578421,0.00018356,2]
[364242891,1749047452773,-808.96,0.00018356,2]
[364242893,1749047452783,-360.0,0.00018356,2]
[364242895,1749047452792,-605.75,0.00018356,2]
[364242897,1749047452802,-440.0,0.00018356,2]
[364242899,1749047452813,-440.0,0.00018356,2]
[364242901,1749047452822,-440.0,0.00018356,2]
[364242903,1749047452832,-440.0,0.00018356,2]
[364242905,1749047452841,-360.0,0.00018356,2]
[364242907,1749047452851,-440.0,0.00018356,2]
[364242909,1749047452861,-440.0,0.00018356,2]
[364242911,1749047452871,-440.0,0.00018356,2]
[364242913,1749047452880,-440.0,0.00018356,2]
[364242915,1749047452890,-440.0,0.00018356,2]
[364242917,1749047452900,-440.0,0.00018356,2]
[364242919,1749047452909,-360.0,0.00018356,2]
[364242921,1749047452919,-440.0,0.00018356,2]
[364242923,1749047452929,-503.78,0.00018356,2]
[364242925,1749047452939,-520.24,0.00018356,2]
[364242927,1749047452949,-689.93,0.00018356,2]
[364242929,1749047452959,-440.0,0.00018356,2]
[364242931,1749047452968,-440.0,0.00018356,2]
[364242933,1749047452978,-440.0,0.00018356,2]
[364242935,1749047452989,-360.0,0.00018356,2]
[364242937,1749047452999,-440.0,0.00018356,2]
[364242939,1749047453009,-440.0,0.00018356,2]
[364242941,1749047453019,-440.0,0.00018356,2]
[364242943,1749047453029,-964.36,0.00018356,2]
[364242945,1749047453039,-440.0,0.00018356,2]
[364242947,1749047453049,-360.0,0.00018356,2]
[364242949,1749047453059,-2437.35,0.00018356,2]
[364242951,1749047453069,-440.0,0.00018356,2]
[364242953,1749047453079,-825.29,0.00018356,2]
[364242955,1749047453089,-360.0,0.00018356,2]
[364242957,1749047453099,-4421.23937849,0.00018383,2]
[364242959,1749047453108,-151.0,0.000184,2]
[364242961,1749047453118,-500.0,0.00018586,2]
[364242963,1749047453127,-500.0,0.00018586,2]
[364242965,1749047453136,-151.0,0.000186,2]
[364242967,1749047453146,-4421.23937849,0.00018624,2]
[364242969,1749047453156,-683.97,0.00018629,2]
[364242971,1749047453166,-2160.74,0.0001863,2]
[364242973,1749047453175,-440.0,0.0001863,2]
[364242975,1749047453185,-1722.31,0.0001863,2]
[364242977,1749047453194,-440.0,0.0001863,2]
[364242979,1749047453203,-1122.68,0.0001863,2]
[364242981,1749047453213,-440.0,0.0001863,2]
[364242983,1749047453223,-685.07,0.0001863,2]
[364242985,1749047453232,-1430.6,0.0001863,2]
[364242987,1749047453242,-440.0,0.0001863,2]
[364242989,1749047453251,-466.45,0.0001863,2]
[364242990,1749047453262,-865.22,0.0001863,2]
[364242993,1749047453272,-440.0,0.0001863,2]